fUSD/lending_fUSD_20250510
["ID","MTS","AMOUNT","RATE_DAILY","PERIOD"]
[360522268,1746835207591,272.71,0.000297,120]
[360522269,1746835386026,705.88039741,0.00018698,2]
[360522270,1746835386346,705.88039741,0.00019016,2]
[360522271,1746835386650,705.88039741,0.00019366,2]
[360522272,1746835386993,705.88039741,0.00019477,2]
[360522274,1746835466511,150.0,0.00018986,7]
[360522275,1746835619795,1000.0,0.00018861,2]
[360522283,1746835770527,150.0,0.00029441,120]
[360522286,1746835832168,-177.4,0.000197,2]
[360522287,1746835832177,-1000.0,0.00019717,2]
[360522288,1746835832187,-1000.0,0.00019721,2]
[360522289,1746835832196,-207.4,0.00019734,2]
[360522290,1746835832205,-1200.0,0.00019745,2]
[360522291,1746835832216,-300.0,0.00019745,2]
[360522292,1746835832225,-300.0,0.00019745,2]
[360522293,1746835832235,-200.0,0.00019746,2]
[360522294,1746835832245,-400.0,0.00019746,2]
[360522295,1746835832255,-400.0,0.00019746,2]
[360522296,1746835832264,-325.37,0.00019746,2]
[360522297,1746835832273,-400.0,0.00019746,2]
[360522298,1746835832283,-748.14,0.00019746,2]
[360522299,1746835832292,-400.0,0.00019746,2]
[360522300,1746835832301,-408.73,0.00019746,2]
[360522301,1746835832310,-164.4797099,0.00019746,2]
[360522302,1746835832319,-926.52,0.00019746,2]
[360522303,1746835832329,-400.0,0.00019746,2]
[360522304,1746835832338,-400.0,0.00019746,2]
[360522305,1746835832348,-450.0,0.00019746,2]
[360522306,1746835832357,-804.09,0.00019746,2]
[360522307,1746835832366,-1788.95,0.00019746,2]
[360522308,1746835832376,-400.0,0.00019746,2]
[360522309,1746835832387,-1144.0,0.00019746,2]
[360522310,1746835832396,-650.786,0.00019746,2]
[360522311,1746835832407,-879.0,0.00019746,2]
[360522312,1746835832417,-1000.0,0.00019748,2]
[360522313,1746835832426,-1000.0,0.0001975,2]
[360522314,1746835832437,-200.0,0.00019751,2]
[360522315,1746835832446,-150.0,0.00019756,2]
[360522316,1746835832456,-798.0,0.00019756,2]
[360522317,1746835832467,-1000.0,0.00019758,2]
[360522318,1746835832476,-1000.0,0.00019761,2]
[360522319,1746835832486,-1000.0,0.00019765,2]
[360522320,1746835832495,-1000.0,0.000198,2]
[360522321,1746835832505,-178.85,0.000198,2]
[360522322,1746835832514,-1000.0,0.0001981,2]
[360522323,1746835832523,-1000.0,0.00019827,2]
[360522324,1746835832533,-993.0,0.0001984,2]
[360522325,1746835832542,-3743.14728635,0.00019857,2]
[360522326,1746835832552,-3743.14728629,0.00019862,2]
[360522327,1746835832562,-8447.06,0.00019862,2]
[360522328,1746835832571,-150.99,0.00019862,2]
[360522329,1746835832581,-694.02,0.00019862,2]
[360522332,1746835832590,-150.99,0.00019862,2]
[360522333,1746835832600,-9999.99,0.00019862,2]
[360522335,1746835832609,-999.99,0.00019862,2]
[360522337,1746835832618,-9999.99,0.00019862,2]
[360522339,1746835832626,-4007.67,0.00019864,2]
[360522340,1746835832636,-1148.95,0.00019864,2]
[360522342,1746835832644,-3743.14728629,0.00019867,2]
[360522344,1746835832654,-1000.0,0.00019867,2]
[360522346,1746835832664,-190.87346283,0.00019868,2]
[360522348,1746835832674,-476.4356,0.00019869,2]
[360522349,1746835832683,-3743.14728629,0.00019871,2]
[360522350,1746835832693,-151.0,0.00019872,2]
[360522351,1746835832704,-500.0,0.00019873,2]
[360522352,1746835832714,-500.0,0.00019873,2]
[360522353,1746835832724,-553.0106179,0.00019873,2]
[360522354,1746835832733,-3743.14728629,0.00019876,2]
[360522355,1746835832743,-2356.5319059,0.0001988,2]
[360522356,1746835832755,-3743.14728629,0.00019881,2]
[360522357,1746835832764,-158.90007297,0.00019886,2]
[360522358,1746835832774,-184.04854355,0.00019886,2]
[360522359,1746835832783,-155.30919064,0.00019886,2]
[360522360,1746835832793,-472.38724277,0.00019888,2]
[360522361,1746835832802,-345.47,0.0001989,2]
[360522362,1746835832812,-1207.814,0.00019892,2]
[360522363,1746835832821,-155.30919064,0.00019893,2]
[360522364,1746835832831,-500.0,0.00019897,2]
[360522365,1746835832840,-400.0,0.00019897,2]
[360522366,1746835832849,-400.0,0.00019897,2]
[360522367,1746835832858,-400.0,0.00019898,2]
[360522368,1746835832868,-400.0,0.00019898,2]
[360522369,1746835832877,-150.0,0.00019898,2]
[360522370,1746835832887,-273.2621427,0.00019898,2]
[360522371,1746835832896,-200.0,0.00019898,2]
[360522372,1746835832905,-400.0,0.00019898,2]
[360522373,1746835832918,-462.71,0.00019898,2]
[360522374,1746835832927,-274.92223708,0.00019898,2]
[360522375,1746835832937,-400.0,0.00019898,2]
[360522376,1746835832947,-400.0,0.00019898,2]
[360522377,1746835832957,-9611.35,0.00019898,2]
[360522378,1746835832967,-460.05,0.00019898,2]
[360522379,1746835832976,-734.32,0.00019898,2]
[360522380,1746835832987,-646.52,0.00019898,2]
[360522381,1746835832996,-400.0,0.00019898,2]
[360522382,1746835833005,-400.0,0.00019898,2]
[360522383,1746835833014,-213.74772828,0.00019898,2]
[360522384,1746835833023,-400.0,0.00019898,2]
[360522385,1746835833033,-186.11214594,0.00019898,2]
[360522386,1746835833051,-213.88785406,0.00019898,2]
[360522387,1746835833061,-524.93912444,0.00019898,2]
[360522388,1746835833072,-299.43087556,0.00019898,2]
[360522389,1746835833081,-599.31,0.00019898,2]
[360522390,1746835833091,-1641.99,0.00019898,2]
[360522392,1746835833100,-276.68340479,0.00019898,2]
[360522394,1746835833112,-629.15700853,0.00019898,2]
[360522396,1746835833123,-962.68958668,0.00019898,2]
[360522398,1746835833133,-1382.6,0.00019898,2]
[360522400,1746835833142,-400.0,0.00019898,2]
[360522402,1746835833156,-4607.4169843,0.00019899,2]
[360522404,1746835833167,-2007.11221684,0.00019899,2]
[360522413,1746835838272,-476.43552863,0.00019886,2]
[360522449,1746835840374,-2164.215192,0.00019886,2]
[360522457,1746835840441,-1102.49656566,0.00019886,2]
[360522459,1746835840451,-3743.14728629,0.0001989,2]
[360522461,1746835840460,-3640.76571518,0.00019899,2]
[360522472,1746835840627,-9407.19625015,0.00019899,2]
[360522480,1746835840699,-1135.94523199,0.00019899,2]
[360522482,1746835840711,-2158.07274696,0.00019899,2]
[360522485,1746835840723,-433.94000014,0.00019899,2]
[360522487,1746835840734,-706.82499999,0.00019899,2]
[360522565,1746835841540,250.0,0.00017,2]
[360522614,1746835842603,300.0,0.00019,2]
[360522625,1746835846108,-470.0,0.00019799,2]
[360522630,1746835846140,-723.73,0.00019799,2]
[360522673,1746835846528,-378.43528873,0.00019799,2]
[360522675,1746835846540,-754.74901127,0.00019799,2]
[360522677,1746835846549,-1358.09167018,0.00019895,2]
[360522731,1746836220595,319.8,0.00016942,2]
[360522732,1746836220792,319.8,0.00019206,2]
[360522736,1746836250750,150.0,0.00029888,120]
[360522745,1746836309883,1045.7471011,0.00027397,30]
[360522770,1746836511305,150.0,0.00018986,7]
[360522862,1746836939562,2000.0,0.0003,30]
[360522874,1746836999239,-1000.0,0.00019719,2]
[360522875,1746836999269,-1000.0,0.00019725,2]
[360522876,1746836999296,-1000.0,0.0001973,2]
[360522877,1746836999323,-200.0,0.00019771,2]
[360522878,1746836999349,-1000.0,0.0001978,2]
[360522879,1746836999376,-207.4,0.00019781,2]
[360522880,1746836999401,-1000.0,0.00019784,2]
[360522881,1746836999427,-1200.0,0.00019787,2]
[360522882,1746836999453,-474.24925143,0.00019787,2]
[360522883,1746836999478,-300.0,0.00019788,2]
[360522884,1746836999504,-300.0,0.00019788,2]
[360522885,1746836999529,-798.0,0.00019789,2]
[360522886,1746836999554,-879.0,0.00019789,2]
[360522887,1746836999581,-1144.0,0.00019789,2]
[360522888,1746836999606,-1685.65074857,0.00019789,2]
[360522893,1746837022174,9975.0,0.0003,30]
[360522894,1746837025133,-1200.0,0.00019787,2]
[360522895,1746837025157,-300.0,0.00019788,2]
[360522896,1746837025180,-879.0,0.00019789,2]
[360522897,1746837025203,-329.59355143,0.00019789,2]
[360522898,1746837025226,-270.4162,0.00019789,2]
[360522899,1746837025252,-838.0,0.00019792,2]
[360522900,1746837025276,-300.0,0.00019792,2]
[360522901,1746837025300,-200.0,0.00019793,2]
[360522902,1746837025323,-9999.99,0.00019793,2]
[360522903,1746837025346,-150.99,0.00019793,2]
[360522904,1746837025368,-150.99,0.00019793,2]
[360522905,1746837025391,-999.99,0.00019793,2]
[360522906,1746837025414,-884.05,0.00019793,2]
[360522907,1746837025436,-154.85634558,0.00019794,2]
[360522908,1746837025459,-2500.0,0.00019799,2]
[360522909,1746837025484,-16710.1184,0.00019799,2]
[360522910,1746837025509,-1567.46924969,0.00019799,2]
[360522911,1746837025533,-1000.0,0.00019805,2]
[360522912,1746837025558,-1567.4692496,0.0001981,2]
[360522913,1746837025585,-1567.4692496,0.00019821,2]
[360522914,1746837025608,-1000.0,0.00019829,2]
[360522915,1746837025634,-1567.4692496,0.00019833,2]
[360522916,1746837025659,-1488.19907109,0.0001984,2]
[360522917,1746837025685,-150.0,0.0001984,2]
[360522918,1746837025710,-1567.4692496,0.00019844,2]
[360522919,1746837025736,-1000.0,0.00019849,2]
[360522920,1746837025761,-771.04692097,0.00019849,2]
[360522921,1746837025785,-167.78593989,0.00019849,2]
[360522922,1746837025809,-28525.578,0.0001985,2]
[360522923,1746837025834,-771.04692092,0.00019855,2]
[360522924,1746837025859,-1567.4692496,0.00019855,2]
[360522925,1746837025884,-771.04692092,0.0001986,2]
[360522926,1746837025909,-771.04692092,0.00019866,2]
[360522927,1746837025933,-1567.4692496,0.00019866,2]
[360522928,1746837025958,-771.04692092,0.00019872,2]
[360522929,1746837025984,-500.0,0.00019873,2]
[360522930,1746837026008,-500.0,0.00019873,2]
[360522931,1746837026031,-500.0,0.00019873,2]
[360522932,1746837026054,-500.0,0.00019873,2]
[360522933,1746837026077,-500.0,0.00019873,2]
[360522934,1746837026100,-500.0,0.00019873,2]
[360522935,1746837026124,-500.0,0.00019873,2]
[360522936,1746837026146,-500.0,0.00019873,2]
[360522937,1746837026169,-500.0,0.00019873,2]
[360522938,1746837026193,-1000.0,0.00019875,2]
[360522939,1746837026217,-771.04692092,0.00019877,2]
[360522940,1746837026246,-1567.4692496,0.00019878,2]
[360522941,1746837026269,-2085.7836862,0.0001988,2]
[360522942,1746837026295,-771.04692092,0.00019883,2]
[360522943,1746837026320,-165.8744417,0.00019885,2]
[360522944,1746837026345,-150.0,0.00019887,2]
[360522945,1746837026372,-571.28,0.00019889,2]
[360522946,1746837026395,-326.33,0.00019889,2]
[360522947,1746837026417,-326.33,0.00019889,2]
[360522948,1746837026440,-326.33,0.00019889,2]
[360522949,1746837026464,-771.04692092,0.00019889,2]
[360522950,1746837026492,-1567.4692496,0.00019889,2]
[360522951,1746837026516,-326.33,0.00019889,2]
[360522952,1746837026540,-326.33,0.00019889,2]
[360522953,1746837026566,-326.33,0.0001989,2]
[360522954,1746837026592,-326.33,0.0001989,2]
[360522955,1746837026617,-326.33,0.0001989,2]
[360522956,1746837026641,-165.87444169,0.00019893,2]
[360522957,1746837026666,-771.04692092,0.00019894,2]
[360522958,1746837026689,-966.251,0.00019895,2]
[360522959,1746837026712,-450.0,0.00019898,2]
[360522960,1746837026737,-450.0,0.00019898,2]
[360522961,1746837026759,-400.0,0.00019898,2]
[360522962,1746837026782,-450.0,0.00019898,2]
[360522963,1746837026807,-400.0,0.00019898,2]
[360522964,1746837026832,-400.0,0.00019898,2]
[360522965,1746837026857,-400.0,0.00019898,2]
[360522966,1746837026881,-400.0,0.00019898,2]
[360522967,1746837026905,-400.0,0.00019898,2]
[360522968,1746837026928,-400.0,0.00019898,2]
[360522969,1746837026953,-400.0,0.00019898,2]
[360522970,1746837026977,-400.0,0.00019898,2]
[360522971,1746837027003,-400.0,0.00019898,2]
[360522972,1746837027026,-450.0,0.00019898,2]
[360522973,1746837027050,-242.25783501,0.00019898,2]
[360522974,1746837027074,-450.0,0.00019898,2]
[360522975,1746837027099,-400.0,0.00019898,2]
[360522976,1746837027122,-366.35,0.00019898,2]
[360522977,1746837027148,-400.0,0.00019898,2]
[360522978,1746837027171,-762.69,0.00019898,2]
[360522979,1746837027371,-400.0,0.00019898,2]
[360522980,1746837027398,-425.88,0.00019898,2]
[360522981,1746837027425,-996.53,0.00019898,2]
[360522982,1746837027449,-450.0,0.00019898,2]
[360522983,1746837027474,-1116.28,0.00019898,2]
[360522984,1746837027502,-450.0,0.00019898,2]
[360522985,1746837027528,-9618.09,0.00019898,2]
[360522986,1746837027552,-400.0,0.00019898,2]
[360522987,1746837027579,-400.0,0.00019898,2]
[360522988,1746837027606,-400.0,0.00019898,2]
[360522989,1746837027631,-400.0,0.00019898,2]
[360522990,1746837027656,-450.0,0.00019898,2]
[360522991,1746837027681,-400.0,0.00019898,2]
[360522992,1746837027706,-459.63,0.00019898,2]
[360522993,1746837027730,-378.18,0.00019898,2]
[360522994,1746837027758,-497.09,0.00019898,2]
[360522995,1746837027782,-400.0,0.00019898,2]
[360522996,1746837027806,-551.5,0.00019898,2]
[360522997,1746837027831,-450.0,0.00019898,2]
[360522998,1746837027855,-1250.01,0.00019898,2]
[360522999,1746837027879,-475.51,0.00019898,2]
[360523000,1746837027904,-610.64,0.00019898,2]
[360523001,1746837027928,-500.0,0.00019898,2]
[360523002,1746837027952,-400.0,0.00019898,2]
[360523003,1746837027977,-400.0,0.00019898,2]
[360523004,1746837028004,-468.73,0.00019898,2]
[360523005,1746837028028,-450.0,0.00019898,2]
[360523006,1746837028053,-619.5,0.00019898,2]
[360523007,1746837028079,-703.72,0.00019898,2]
[360523008,1746837028104,-418.74,0.00019898,2]
[360523009,1746837028128,-400.0,0.00019898,2]
[360523010,1746837028152,-896.22,0.00019898,2]
[360523011,1746837028177,-5793.36,0.00019898,2]
[360523012,1746837028202,-450.0,0.00019898,2]
[360523013,1746837028227,-619.58,0.00019898,2]
[360523014,1746837028253,-400.0,0.00019898,2]
[360523015,1746837028279,-400.0,0.00019898,2]
[360523016,1746837028303,-400.0,0.00019898,2]
[360523017,1746837028327,-159.87594137,0.00019898,2]
[360523018,1746837028351,-462.18,0.00019898,2]
[360523019,1746837028377,-1448.86,0.00019898,2]
[360523020,1746837028401,-400.0,0.00019898,2]
[360523021,1746837028426,-400.0,0.00019898,2]
[360523022,1746837028450,-400.0,0.00019898,2]
[360523023,1746837028474,-400.0,0.00019898,2]
[360523024,1746837028498,-400.0,0.00019898,2]
[360523025,1746837028522,-769.21,0.00019898,2]
[360523026,1746837028545,-547.51315736,0.00019898,2]
[360523027,1746837028572,-155.88331477,0.00019898,2]
[360523028,1746837028596,-535.4,0.00019898,2]
[360523029,1746837028621,-400.0,0.00019898,2]
[360523030,1746837028646,-400.0,0.00019898,2]
[360523031,1746837028670,-400.0,0.00019898,2]
[360523032,1746837028693,-400.0,0.00019898,2]
[360523033,1746837028717,-26220.489807,0.00019898,2]
[360523034,1746837028743,-400.0,0.00019898,2]
[360523035,1746837028768,-400.0,0.00019898,2]
[360523036,1746837028792,-670.82,0.00019898,2]
[360523037,1746837028816,-693.5,0.00019898,2]
[360523038,1746837028841,-400.0,0.00019898,2]
[360523039,1746837028866,-112603.40932997,0.00019899,2]
[360523040,1746837028890,-35407.86388187,0.00019899,2]
[360523041,1746837028915,-151.0,0.00019899,2]
[360523042,1746837028937,-200.0,0.00019899,2]
[360523043,1746837028961,-400.0,0.00019899,2]
[360523044,1746837028987,-400.0,0.00019899,2]
[360523045,1746837029010,-292.06268973,0.00019899,2]
[360523046,1746837029034,-450.0,0.00019899,2]
[360523047,1746837029058,-450.0,0.00019899,2]
[360523048,1746837029082,-400.0,0.00019899,2]
[360523049,1746837029107,-201.1,0.00019899,2]
[360523050,1746837029133,-150.0,0.00019899,2]
[360523051,1746837029157,-500.0,0.00019899,2]
[360523052,1746837029181,-11859.79524898,0.000199,2]
[360523053,1746837029207,-1567.4692496,0.000199,2]
[360523054,1746837029231,-525.93774806,0.000199,2]
[360523055,1746837029256,-165.87444169,0.000199,2]
[360523056,1746837029282,-388.20259177,0.000199,2]
[360523057,1746837029306,-771.04692092,0.000199,2]
[360523058,1746837029329,-167.78593989,0.000199,2]
[360523059,1746837029353,-38172.94800398,0.000199,2]
[360523060,1746837029377,-1000.0,0.00019905,2]
[360523061,1746837029400,-500.0,0.00019926,2]
[360523062,1746837029424,-326.33,0.00019939,2]
[360523063,1746837029447,-326.33,0.00019939,2]
[360523064,1746837029471,-1000.0,0.0001994,2]
[360523065,1746837029495,-571.28,0.0001994,2]
[360523066,1746837029519,-1000.0,0.00019941,2]
[360523067,1746837029543,-200.0,0.00019949,2]
[360523068,1746837029569,-400.0,0.00019949,2]
[360523069,1746837029594,-400.0,0.00019949,2]
[360523070,1746837029618,-400.0,0.00019949,2]
[360523071,1746837029644,-400.0,0.00019949,2]
[360523072,1746837029668,-400.0,0.00019949,2]
[360523073,1746837029692,-400.0,0.00019949,2]
[360523074,1746837029897,-154.12705526,0.00019949,2]
[360523075,1746837029923,-469.84,0.00019949,2]
[360523076,1746837029947,-600.0,0.00019949,2]
[360523077,1746837029971,-202.6477267,0.00019949,2]
[360523078,1746837029997,-400.0,0.00019949,2]
[360523079,1746837030021,-450.0,0.00019949,2]
[360523080,1746837030045,-450.0,0.00019949,2]
[360523081,1746837030069,-400.0,0.00019949,2]
[360523082,1746837030100,-277.54,0.00019949,2]
[360523083,1746837030124,-760.97,0.00019949,2]
[360523084,1746837030148,-249.35578149,0.00019949,2]
[360523085,1746837030172,-450.0,0.00019949,2]
[360523086,1746837030196,-450.0,0.00019949,2]
[360523087,1746837030220,-450.0,0.00019949,2]
[360523088,1746837030246,-450.0,0.00019949,2]
[360523089,1746837030273,-450.0,0.00019949,2]
[360523090,1746837030297,-450.0,0.00019949,2]
[360523091,1746837030321,-400.0,0.00019949,2]
[360523092,1746837030347,-400.0,0.00019949,2]
[360523093,1746837030371,-400.0,0.00019949,2]
[360523094,1746837030397,-400.0,0.00019949,2]
[360523095,1746837030422,-510.62,0.00019949,2]
[360523096,1746837030447,-400.0,0.00019949,2]
[360523097,1746837030472,-450.0,0.00019949,2]
[360523098,1746837030500,-400.0,0.00019949,2]
[360523099,1746837030526,-450.0,0.00019949,2]
[360523100,1746837030552,-484.32,0.00019949,2]
[360523101,1746837030580,-434.49,0.00019949,2]
[360523102,1746837030605,-532.26,0.00019949,2]
[360523103,1746837030631,-529.98,0.00019949,2]
[360523104,1746837030656,-450.0,0.00019949,2]
[360523105,1746837030680,-450.0,0.00019949,2]
[360523106,1746837030705,-450.0,0.00019949,2]
[360523107,1746837030729,-400.0,0.00019949,2]
[360523108,1746837030756,-961.17,0.00019949,2]
[360523109,1746837030781,-400.0,0.00019949,2]
[360523110,1746837030805,-789.33,0.00019949,2]
[360523111,1746837030830,-400.0,0.00019949,2]
[360523112,1746837030856,-351.94163375,0.00019949,2]
[360523113,1746837030882,-574.34,0.00019949,2]
[360523114,1746837030907,-450.0,0.00019949,2]
[360523115,1746837030932,-1641.99,0.00019949,2]
[360523116,1746837030956,-1733.16,0.00019949,2]
[360523117,1746837030980,-400.0,0.00019949,2]
[360523118,1746837031007,-400.0,0.00019949,2]
[360523119,1746837031031,-400.0,0.00019949,2]
[360523120,1746837031056,-400.0,0.00019949,2]
[360523121,1746837031081,-1802.21,0.00019949,2]
[360523122,1746837031106,-465.68,0.00019949,2]
[360523123,1746837031131,-1324.99,0.00019949,2]
[360523124,1746837031155,-400.0,0.00019949,2]
[360523125,1746837031180,-400.0,0.00019949,2]
[360523126,1746837031208,-400.0,0.00019949,2]
[360523127,1746837031233,-400.0,0.00019949,2]
[360523128,1746837031261,-400.0,0.00019949,2]
[360523129,1746837031286,-400.0,0.00019949,2]
[360523130,1746837031310,-762.69,0.00019949,2]
[360523131,1746837031333,-400.0,0.00019949,2]
[360523132,1746837031358,-425.88,0.00019949,2]
[360523133,1746837031383,-758.74,0.00019949,2]
[360523134,1746837031407,-400.0,0.00019949,2]
[360523135,1746837031431,-400.0,0.00019949,2]
[360523136,1746837031457,-996.53,0.00019949,2]
[360523137,1746837031482,-6485.61,0.00019949,2]
[360523138,1746837031508,-160.0,0.00019949,2]
[360523139,1746837031532,-400.0,0.00019949,2]
[360523140,1746837031555,-1116.28,0.00019949,2]
[360523141,1746837031584,-450.0,0.00019949,2]
[360523142,1746837031607,-400.0,0.00019949,2]
[360523143,1746837031631,-400.0,0.00019949,2]
[360523144,1746837031655,-400.0,0.00019949,2]
[360523145,1746837031678,-1257.63,0.00019949,2]
[360523146,1746837031702,-9618.09,0.00019949,2]
[360523147,1746837031726,-400.0,0.00019949,2]
[360523148,1746837031751,-400.0,0.00019949,2]
[360523149,1746837031774,-771.11,0.00019949,2]
[360523150,1746837031797,-400.0,0.00019949,2]
[360523151,1746837031820,-450.0,0.00019949,2]
[360523152,1746837031845,-400.0,0.00019949,2]
[360523153,1746837031870,-1562.23,0.00019949,2]
[360523154,1746837031894,-400.0,0.00019949,2]
[360523155,1746837031918,-400.0,0.00019949,2]
[360523156,1746837031943,-400.0,0.00019949,2]
[360523157,1746837031967,-400.0,0.00019949,2]
[360523158,1746837031992,-400.0,0.00019949,2]
[360523159,1746837032017,-459.63,0.00019949,2]
[360523160,1746837032040,-169.60750153,0.00019949,2]
[360523161,1746837032064,-400.0,0.00019949,2]
[360523162,1746837032087,-500.0,0.00019949,2]
[360523163,1746837032113,-170.06445252,0.00019949,2]
[360523164,1746837032147,-500.0,0.00019949,2]
[360523167,1746837032180,-500.0,0.00019949,2]
[360523169,1746837032214,-500.0,0.00019949,2]
[360523172,1746837032252,-500.0,0.00019949,2]
[360523175,1746837032285,-500.0,0.00019949,2]
[360523177,1746837032318,-500.0,0.00019949,2]
[360523178,1746837032493,-500.0,0.00019949,2]
[360523179,1746837032528,-500.0,0.00019949,2]
[360523180,1746837032564,-500.0,0.00019949,2]
[360523181,1746837032603,-500.0,0.00019949,2]
[360523182,1746837032639,-500.0,0.00019949,2]
[360523186,1746837032677,-261.73313117,0.00019949,2]
[360523192,1746837032710,-500.0,0.00019949,2]
[360523204,1746837032745,-500.0,0.00019949,2]
[360523212,1746837032780,-500.0,0.00019949,2]
[360523217,1746837032814,-500.0,0.00019949,2]
[360523222,1746837032847,-500.0,0.00019949,2]
[360523226,1746837032881,-500.0,0.00019949,2]
[360523231,1746837032915,-500.0,0.00019949,2]
[360523235,1746837032948,-500.0,0.00019949,2]
[360523240,1746837032982,-500.0,0.00019949,2]
[360523243,1746837033010,-497.09,0.00019949,2]
[360523247,1746837033035,-400.0,0.00019949,2]
[360523250,1746837033061,-551.5,0.00019949,2]
[360523254,1746837033088,-400.0,0.00019949,2]
[360523258,1746837033116,-1250.01,0.00019949,2]
[360523261,1746837033142,-400.0,0.00019949,2]
[360523265,1746837033169,-610.64,0.00019949,2]
[360523268,1746837033195,-400.0,0.00019949,2]
[360523269,1746837033220,-400.0,0.00019949,2]
[360523270,1746837033247,-400.0,0.00019949,2]
[360523271,1746837033272,-214.98179546,0.00019949,2]
[360523272,1746837033297,-400.0,0.00019949,2]
[360523273,1746837033322,-468.73,0.00019949,2]
[360523277,1746837033347,-400.0,0.00019949,2]
[360523280,1746837033373,-619.5,0.00019949,2]
[360523284,1746837033398,-177.75,0.00019949,2]
[360523288,1746837033423,-703.72,0.00019949,2]
[360523291,1746837033449,-418.74,0.00019949,2]
[360523295,1746837033475,-400.0,0.00019949,2]
[360523298,1746837033502,-896.22,0.00019949,2]
[360523302,1746837033527,-166.93871242,0.00019949,2]
[360523305,1746837033552,-5793.36,0.00019949,2]
[360523309,1746837033579,-210.11,0.00019949,2]
[360523313,1746837033604,-619.58,0.00019949,2]
[360523316,1746837033629,-400.0,0.00019949,2]
[360523320,1746837033654,-400.0,0.00019949,2]
[360523323,1746837033679,-400.0,0.00019949,2]
[360523327,1746837033704,-462.18,0.00019949,2]
[360523331,1746837033729,-1448.86,0.00019949,2]
[360523334,1746837033756,-400.0,0.00019949,2]
[360523338,1746837033782,-168.1,0.00019949,2]
[360523341,1746837033807,-400.0,0.00019949,2]
[360523345,1746837033831,-400.0,0.00019949,2]
[360523348,1746837033856,-400.0,0.00019949,2]
[360523351,1746837033882,-259.9899502,0.00019949,2]
[360523354,1746837033909,-400.0,0.00019949,2]
[360523357,1746837033935,-355.32,0.00019949,2]
[360523361,1746837033962,-769.21,0.00019949,2]
[360523364,1746837033990,-400.0,0.00019949,2]
[360523368,1746837034016,-450.0,0.00019949,2]
[360523371,1746837034041,-285.98689984,0.00019949,2]
[360523375,1746837034067,-199.09817932,0.00019949,2]
[360523378,1746837034092,-358.59,0.00019949,2]
[360523382,1746837034117,-670.82,0.00019949,2]
[360523385,1746837034141,-693.5,0.00019949,2]
[360523388,1746837034165,-400.0,0.00019949,2]
[360523391,1746837034189,-144160.672827,0.0001995,2]
[360523395,1746837034213,-377.43676604,0.0001995,2]
[360523398,1746837034240,-400.0,0.00019953,2]
[360523402,1746837034265,-200.0,0.00019953,2]
[360523405,1746837034290,-600.0,0.00019953,2]
[360523409,1746837034315,-574.34,0.00019953,2]
[360523412,1746837034342,-1641.99,0.00019953,2]
[360523415,1746837034367,-190.0,0.00019953,2]
[360523419,1746837034393,-400.0,0.00019953,2]
[360523422,1746837034418,-272.68434054,0.00019953,2]
[360523426,1746837034445,-1802.21,0.00019953,2]
[360523429,1746837034471,-1324.99,0.00019953,2]
[360523433,1746837034500,-400.0,0.00019953,2]